Cogmind - Beta 14 @@@ ROGUE MODE // 2024.08.17 @ 22:52:40 Player: TheProctologist Result: Destroyed by D-53 Grenadier with Mini Grenade Launcher Performance ------------- Evolutions (0) 0 Regions Visited (2) 400 Robots Destroyed (38) 190 Value Destroyed (644) 644 Prototype IDs (0) 0 Alien Tech Used (0) 0 Bonus (0) 0 TOTAL SCORE: 1234 Bonus ------- None Cogmind --------- Core Integrity 0/250 Matter 295/300 Energy 100/100 System Corruption 0% Temperature Cool (0) Movement Treading (160) Location -10/Mines Parts ------- > --- POWER (1) -------- (None) > --- PROPULSION (2) --- Light Treads > --- UTILITY (2) ------ Large Storage Unit Targeting Computer > --- WEAPON (2) ------- (None) > --- INVENTORY (15) --- Light Ion Engine Light Nuclear Core Targeting Computer Reactive Plating Improved Trap Extractor (0/6) EM Shotgun Particle Gun Assault Rifle Light Cannon EMP Blaster EMP Blaster Datajack Mining Laser Peak State ------------ > --- POWER ------------ Ion Engine > --- PROPULSION ------- Light Treads Light Treads > --- UTILITY ---------- Large Storage Unit Targeting Computer > --- WEAPON ----------- EM Shotgun EM Shotgun > --- INVENTORY -------- Light Ion Engine Light Nuclear Core Light Treads Improved Terrain Scanner Targeting Computer EM Shotgun Particle Gun Assault Rifle Assault Rifle Light Cannon EMP Blaster EMP Blaster Datajack Mining Laser [Rating: 11] Favorites ----------- Power Ion Engine Engine Ion Engine Propulsion Light Treads Treads Light Treads Utility Large Storage Unit Device Improved Terrain Scanner Storage Large Storage Unit Processor Targeting Computer Weapon EM Shotgun Energy Gun EM Shotgun Ballistic Gun Assault Rifle Ballistic Cannon Light Cannon Launcher Grenade Launcher Build | -11 -10 -10 ------- Run | Yrd Mat Min Slots Evolved . | . . . Power . | . . . Propulsion . | . . . Utility . | . . . Weapon . | . . . Parts Attached 19 | 7 8 4 Power 2 | 1 . 1 Engine 2 | 1 . 1 Core . | . . . Reactor . | . . . Propulsion 5 | 2 . 3 Treads 5 | 2 . 3 Leg . | . . . Wheel . | . . . Hover . | . . . Flight . | . . . Utility 5 | 2 3 . Device 2 | 1 1 . Storage 2 | 1 1 . Processor 1 | . 1 . Hackware . | . . . Protection . | . . . Artifact . | . . . Weapon 7 | 2 5 . Energy Gun 3 | . 3 . Energy Cannon . | . . . Ballistic Gun 2 | 2 . . Ballistic Cannon 1 | . 1 . Launcher 1 | . 1 . Special Weapon . | . . . Impact Weapon . | . . . Slashing Weapon . | . . . Piercing Weapon . | . . . Special Melee Weapon . | . . . Unidentified Prototypes . | . . . Parts Lost 9 | . 2 7 Power 2 | . . 2 Propulsion 3 | . . 3 Utility . | . . . Weapon 4 | . 2 2 Highest Loss Streak 5 | . 2 5 To Critical Strikes . | . . . Average Slot Usage (%) 98 | . 99 98 Engine 13 | . 14 13 Treads 27 | . 28 27 Device 8 | . 12 . Storage 14 | . 14 14 Processor 5 | . 1 14 Energy Gun 11 | . 2 27 Ballistic Gun 4 | . 7 . Ballistic Cannon 6 | . 10 . Launcher 4 | . 7 . Peak Build Rating 11 | 9 11 11 Average Rating 9 | 5 8 10 On Entrance 6 | . 9 11 Naked Turns . | . . . Heaviest Build 32 | 15 32 31 Greatest Support 40 | 40 40 40 Greatest Overweight (x) 4 | 4 . 1 Average Overweight (x) . | . . . Largest Inventory Capacity 15 | 8 15 15 Average Capacity 12 | 7 11 15 Most Carried 15 | 4 15 15 Average Carried 10 | 2 8 14 Final Capacity 15 | 8 15 15 Final Carried 15 | 4 15 13 Class Distribution -------------------- 100% | Mutant Dominant Class ---------------- Mutant | -10/Materials Mutant | -10/Mines Resources | -11 -10 -10 ----------- Run | Yrd Mat Min Matter Collected 670 | 306 290 74 Remotely . | . . . Salvage Created 837 | 126 487 224 Parts 78 | 9 52 17 Haulers Intercepted 1 | . 1 . Recyclers Shooed 1 | . . 1 Parts Field Recycled . | . . . Retrieved Matter . | . . . Parts Self-Destructed . | . . . Prevented . | . . . Kills | -11 -10 -10 ------- Run | Yrd Mat Min Combat Hostiles Destroyed 23 | . 15 8 Guns 6 | . 1 5 Cannons 8 | . 8 . AOE 8 | . 6 2 Classes Destroyed 9 | 3 6 . Worker 4 | 1 2 1 Builder 4 | . 4 . Tunneler 2 | 1 1 . Hauler 1 | . 1 . Recycler 2 | 1 1 . Operator 1 | . 1 . Watcher 1 | . 1 . Swarmer 12 | . 6 6 Grunt 11 | . 9 2 Best Kill Streak 6 | 1 6 4 Combat Bots Only 3 | . 3 3 Max Kills in Single Turn 3 | 1 3 2 Gunslinging . | . . . Exploded 2 | . 2 1 Melee . | . . . Uniques/NPCs Destroyed . | . . . Combat | -11 -10 -10 -------- Run | Yrd Mat Min Hostile Shots Fired 119 | . 65 54 Missed 41 | . 24 17 Damage Taken 1167 | . 586 581 Core 250 | . 120 130 Absorbed by Shields . | . . . Core Remaining (%) 100 | 100 . . Volleys Fired 58 | 6 36 16 Largest 2 | 2 2 2 Hottest 90 | 40 75 90 Shots Fired 113 | 12 69 32 Gun 70 | 12 26 32 Cannon 34 | . 34 . Launcher 9 | . 9 . Special . | . . . Kinetic 70 | 12 58 . Thermal . | . . . Explosive 9 | . 9 . Electromagnetic 34 | . 2 32 Robot Hit Streak 7 | 5 6 7 Robot Miss Streak 4 | 1 3 4 Penetration Max . | . . . Secondary Targets 1 | . . 1 Max Gunslinging Chain 1 | . . 1 Shots Hit Robots 70 | 8 39 23 Core Hits 47 | 4 33 10 Critical Kills . | . . . Critical Parts Destroyed . | . . . Critical Strikes 1 | . 1 . Blast 1 | . 1 . Melee Attacks . | . . . Impact . | . . . Slashing . | . . . Piercing . | . . . Sneak Attacks . | . . . Combat Hostiles . | . . . Follow-up Attacks . | . . . Damage Inflicted 1758 | 97 1149 512 Guns 600 | 97 200 303 Cannons 332 | . 332 . Explosions 793 | . 608 185 Melee . | . . . Ramming 33 | . 9 24 Kinetic 599 | 97 502 . Thermal 207 | . 22 185 Explosive 586 | . 586 . Electromagnetic 333 | . 30 303 Impact . | . . . Slashing . | . . . Piercing . | . . . Highest Corruption . | . . . Average Corruption . | . . . Corruption Purged . | . . . Corruption Blocked . | . . . Overload Shots . | . . . Overflow Damage 76 | . 72 4 Projectiles . | . . . Explosions 76 | . 72 4 Melee . | . . . Knockbacks 3 | . 3 . Impact . | . . . Kinetic 3 | . 3 . Secondary . | . . . Self-Inflicted Damage 136 | . 136 . Shots 3 | . 3 . Rammed 5 | . 2 3 Targets Rammed 7 | . 4 3 Kicked . | . . . Crushed 2 | . 2 . Highest Temperature 150 | . 35 150 Average Temperature 36 | . 6 65 Received Heat Transfer 156 | . 147 9 Siege Activations . | . . . Robots Corrupted 1 | . . 1 Combat Hostiles 1 | . . 1 Parts Fried . | . . . Impact Corruptions . | . . . Robots Melted . | . . . Combat Hostiles . | . . . Parts Melted 1 | . . 1 Heat Transferred 250 | . 50 200 Parts Sabotaged . | . . . Parts Stolen . | . . . Parts Stripped . | . . . Power Chain Reactions 2 | . . 2 Alert | -11 -10 -10 ------- Run | Yrd Mat Min Peak Influence 360 | 15 360 248 Initial 117 | . 9 117 Average 144 | 5 156 146 Maximum Alert Level 1 | . 1 1 Low Security (%) 64 | 100 58 70 Level 1 35 | . 41 29 Level 2 . | . . . Level 3 . | . . . Level 4 . | . . . Level 5 . | . . . High Security . | . . . Max Security . | . . . Squads Dispatched 3 | . 3 . Investigation 1 | . 1 . Extermination . | . . . Reinforcement 2 | . 2 . Assault . | . . . Garrison . | . . . Intercept . | . . . Searches Triggered . | . . . Construction Impeded . | . . . Haulers Reinforced . | . . . Active Scanning Responses . | . . . Cargo Convoy Interrupts . | . . . Stealth | -11 -10 -10 --------- Run | Yrd Mat Min Distress Signals 2 | . 2 . Communications Jammed . | . . . Distress Signals . | . . . Times Spotted 52 | . 29 23 Peak Tracking Total 18 | . 4 18 Tactical Retreats 2 | . 2 . Traps | -11 -10 -10 ------- Run | Yrd Mat Min Traps Triggered 1 | . 1 . Indirectly . | . . . Trap Hack Attempts . | . . . Triggered . | . . . Disarmed . | . . . Reprogrammed . | . . . Reused . | . . . Traps Extracted . | . . . Installed . | . . . Triggered . | . . . Machines | -11 -10 -10 ---------- Run | Yrd Mat Min Machines Disabled 4 | . 4 . Max in Single Turn 2 | . 2 . Machines Repaired . | . . . Machines Dismantled . | . . . Machines Sabotaged . | . . . Overloaded Fab Kills . | . . . Hacking | -11 -10 -10 --------- Run | Yrd Mat Min Machines Accessed 7 | . 6 1 Terminals 6 | . 6 . Fabricators . | . . . Repair Stations . | . . . Recycling Units . | . . . Scanalyzers . | . . . Garrison Access . | . . . Total Hacks 21 | . 20 1 Successful 7 | . 6 1 Failed 14 | . 14 . Catastrophic 1 | . 1 . Database Lockouts . | . . . Manual 1 | . 1 . Terminals 20 | . 20 . Fabricators . | . . . Repair Stations . | . . . Recycling Units . | . . . Scanalyzers . | . . . Garrison Access . | . . . Terminal Hacks 7 | . 6 1 Open Door 1 | . . 1 Branch Access Points 1 | . 1 . Emergency Access Points 1 | . 1 . Locate Traps 2 | . 2 . Hauler Manifests 1 | . 1 . Zone Layout 1 | . 1 . Fabricator Hacks . | . . . Repair Station Hacks . | . . . Recycling Unit Hacks . | . . . Scanalyzer . | . . . Garrison Access Hacks . | . . . Unauthorized Hacks . | . . . Terminals . | . . . Fabricators . | . . . Repair Stations . | . . . Recycling Units . | . . . Scanalyzers . | . . . Garrison Access . | . . . Data Cores Recovered . | . . . Used . | . . . Hacking Detections 5 | . 5 . Full Trace Events 1 | . 1 . Feedback Events . | . . . Feedback Blocked . | . . . Robot Schematics Acquired . | . . . Robots Built . | . . . Authchips . | . . . Time . | . . . Total Robot Build Rating . | . . . Part Schematics Acquired . | . . . Parts Built . | . . . Authchips . | . . . Time . | . . . Total Part Build Rating . | . . . Parts Repaired . | . . . Time . | . . . Parts Recycled . | . . . Recycled Matter . | . . . Retrieved Matter . | . . . Retrieved Components . | . . . Parts Scanalyzed . | . . . Part Schematics Acquired . | . . . Parts Damaged . | . . . Bothacking | -11 -10 -10 ------------ Run | Yrd Mat Min Used RIF Installer . | . . . Robots Hacked . | . . . Non-combat . | . . . Combat . | . . . Robot Hacks Applied . | . . . Relay Couplers Released . | . . . Fabnet Peak Effective % . | . . . Robots Rewired . | . . . Allies Hacked . | . . . Hacks Repelled . | . . . Allies | -11 -10 -10 -------- Run | Yrd Mat Min Total Allies . | . . . Largest Group . | . . . Highest-Rated Group . | . . . Highest-Rated Ally . | . . . Total Orders . | . . . Ally Attacks . | . . . Total Damage . | . . . Kills . | . . . Allies Corrupted . | . . . Allies Melted . | . . . Intel | -11 -10 -10 ------- Run | Yrd Mat Min Robot Analysis Total . | . . . Derelict Logs Recovered . | . . . Drone Launches . | . . . Drone Recoveries . | . . . Exploration | -11 -10 -10 ------------- Run | Yrd Mat Min Turns Passed 1976 | 120 1182 674 Spaces Moved 1057 | 57 640 360 Core 11 | 11 . . Treads 1046 | 46 640 360 Legs . | . . . Wheels . | . . . Hover . | . . . Flight . | . . . Fastest Speed 50 | 50 160 160 Average Speed 159 | 155 160 160 Slowest Speed 250 | 250 160 240 Overloaded Moves . | . . . Propulsion Burnouts . | . . . Robots Hopped . | . . . Cave-ins Triggered . | . . . Exploration Rate (%) 57 | 5 98 69 Regions Visited 2 Branch Regions 1 Pre-discovered Areas . | . . . Known Exits Taken 1 | . 1 . Unknown Exits Taken 1 | 1 . . Scrap Searched 1 | . . 1 Spaces Dug . | . . . Terrain Destroyed 59 | . 48 11 Melee . | . . . Projectile . | . . . AOE 59 | . 48 11 Terrain Rammed . | . . . Walls Destroyed . | . . . Machines Disabled . | . . . Actions | -11 -10 -10 --------- Run | Yrd Mat Min Total 1227 | 74 728 425 Wait 52 | . 19 33 Move 1055 | 56 639 360 Hop . | . . . Pick Up 24 | 5 15 4 Fast Attach 10 | 6 3 1 Attach 5 | 1 1 3 Detach 2 | . 1 1 Swap 4 | . 4 . Drop 10 | . 6 4 Fire 58 | 6 36 16 Melee . | . . . Ram . | . . . Kick . | . . . Crush 7 | . 4 3 Escape Stasis . | . . . Rewire . | . . . Trap . | . . . Miscellaneous . | . . . Route ------- -11/Scrapyard -10/Materials (discovered 4 exits: [*Mat x3] / *Min) -10/Mines (discovered 3 exits: [*Mat x2] / [*Exi]) History --------- Turn | Location | Event 19 | -11/Scrapyard | Discovered new exit (range 15) 121 | -11/Scrapyard | Entered Materials 149 | -10/Materials | Identified exit to Mines 300 | -10/Materials | Build established: Mutant 512 | -10/Materials | Discovered new exit (range 10) 826 | -10/Materials | Discovered new exit (range 4) 907 | -10/Materials | Discovered new exit (range 11) 1303 | -10/Materials | Entered Mines 1338 | -10/Mines | Core integrity fell below 50% 1440 | -10/Mines | Discovered new exit (range 6) 1539 | -10/Mines | Discovered new exit (range 8) 1659 | -10/Mines | Met a Derelict who couldn't figure out how to use a Trap Extractor 1710 | -10/Mines | Deemed a non-threat by the Exiles lab entrance 1712 | -10/Mines | Discovered new exit (range 5) 1921 | -10/Mines | Assembled infested the area 1926 | -10/Mines | Assisted by a Guerilla fighting off Assembled 1972 | -10/Mines | Core integrity fell below 20% 1977 | -10/Mines | Destroyed by D-53 Grenadier with Mini Grenade Launcher Last Messages --------------- group of Assembled to figure out where they're coming from, and they're closing on this area, come on!" 01928_ T-07 Excavator destroyed. 01939_ D-53 Grenadier unfolds itself. 01940_ as-56010 destroyed. 01940_ as-85523 destroyed. 01940_ as-19344 destroyed. 01941_ as-55160 destroyed. 01941_ as-38358 destroyed. 01944_ as-14450 destroyed. 01945_ as-01382 destroyed. 01947_ Acquired 3 matter. 01967_ EM Shotgun destroyed. 01967_ K-01 Serf destroyed. 01969_ Lgt. Treads destroyed. 01971_ EM Shotgun destroyed. 01971_ Lgt. Ion Engine destroyed. 01972_ The unstable cave ceiling collapses. 01975_ Lgt. Treads destroyed. Map ----- +----------------------------------------------------+ | ????????? ] ???????????# # #???? | | ?????????? % #???????????# *[ #???? | | ?????????##%* ???????????# = ][ #???? | | ?????????# ???????????# [*# #???? | | ????####? ???????????## ## #???? | | ???## ## ????????????#### #???? | | ??## ## ???????????????# #???? | | ??# ## ##?????????????# #???? | | #?# #? #?????????????# #???? | | #?# ### #?????????????# #???? | | #??# ## ##????????????# #???? | | #??## %=![ #????????????# #???? | | ##??###=%*%% #????????????########## ###???? | | #######[=## ##?????????????????????# #?????? | | ### #### #??????????????????????# #?????? | | #??# ##?????????????????????# #?????? | | #??# #????????????#####????# #?????? | | #####??## #???????????## ##???# #?????? | | # ##??????# #?????????### #???# #?????? | | # #??????# #?????##### #???# #?????? | | ## #??????# #????## # ##### #?????? | | ?## ##??????# #???## #?????? | | ??# ##???????# #???# #?????? | | ??# #????????# #??## ## #######?????? | | ??# #????????# #?## ######???????????? | | ??#]*########## ### @ #???????????????? | | ??# ! d ##???????????????? | | ??# d #????????????????? | | ?###### ########## #####?????????????? | | ?# #????# t #?????????????? | | ?# #????# #### #?????????????? | | ?# #????# #??# #?????????????? | | ?# < #????# ##??# #???#####?????? | | ?# """ #????### #???# ##### #?????? | | ?# """ #??????### #??# ##????? | | ?# """ #????????## #??######## #????? | | ?# #?????????## ##?????????# #????? | | ?########?##??????????#####?????????## #????? | | ???????????????????????????????????## ##???? | | ???????????????????????????????????# ##??? | | ???????????????????????????????????# < #??? | | ???????????????????????????????????## #??? | | ????????????????????????????????????## ##??? | | ?????????????????????????????????????######???? | | ??????????????????????????????????????????????? | | | | | | | | | | | +----------------------------------------------------+ Best States ------------- Heat Dissipation 25 Energy Generation 10 Energy Capacity 250 Matter Stores 300 Matter Capacity 300 Sight Range 16 Terrain Scan Range 16 Terrain Scan Density 10 Evasion (%) 40 Targeting Accuracy 5 Recoil Reduction 2 Item Schematics ----------------- None Robot Schematics ------------------ None Fabricated ------------ Nothing Alien Tech Used ----------------- None Achievements -------------- None Challenges ------------ None Game ------ Seed HeartKineticMegatreads Manual? 0 Play Time 00:19:38 Cumulative 30.2 hours Start 2024.08.17 @ 22:33:11 End 2024.08.17 @ 22:52:40 Sessions 1 Manual Loads 0 Difficulty Rogue Special Mode None Game No. 42 Rogue 42 Adventurer 0 Explorer 0 Win Type - Total 0 Types 0/0/0/0/0/0/0/0/0 Lore% 11 Gallery% 21 Achievement% 18 Wizard Run 0 Options --------- Layout 1 ASCII 0 Keyboard 0 Movement Numpad Keybinds 0 Fullscreen 1 Font 32/SmallcapsGlow Map View 50x40 Zoom Use 17% Tactical HUD 1 Map Filters NONE Filters NONE Steam 1 RUN: eab79b70-02dc-48ce-9c7f-ca3807092092